fUSD/lending_fUSD_20250125
["ID","MTS","AMOUNT","RATE_DAILY","PERIOD"]
[350322137,1737793841605,-500.0,0.00019439,2]
[350322138,1737793841615,-500.0,0.00019439,2]
[350322139,1737793841624,-500.0,0.00019439,2]
[350322140,1737793841634,-500.0,0.00019439,2]
[350322141,1737793841643,-500.0,0.00019439,2]
[350322142,1737793841652,-500.0,0.00019439,2]
[350322143,1737793841662,-500.0,0.00019439,2]
[350322144,1737793841672,-500.0,0.00019439,2]
[350322145,1737793841682,-500.0,0.00019439,2]
[350322146,1737793841692,-500.0,0.00019439,2]
[350322147,1737793841701,-500.0,0.00019439,2]
[350322148,1737793841711,-511.80619204,0.00019439,2]
[350322149,1737793841720,-500.0,0.00019439,2]
[350322150,1737793841729,-509.69923556,0.00019439,2]
[350322151,1737793841739,-500.0,0.00019439,2]
[350322152,1737793841749,-500.0,0.00019439,2]
[350322153,1737793841759,-500.0,0.00019439,2]
[350322154,1737793841769,-500.0,0.00019439,2]
[350322155,1737793841778,-503.05084948,0.00019439,2]
[350322156,1737793841787,-640.74,0.00019439,2]
[350322157,1737793841797,-500.0,0.00019439,2]
[350322158,1737793841806,-509.92715315,0.00019439,2]
[350322159,1737793841816,-621.32513961,0.00019439,2]
[350322160,1737793841826,-201.21048973,0.00019439,2]
[350322161,1737793841835,-500.0,0.00019439,2]
[350322162,1737793841845,-249.89811632,0.00019439,2]
[350322163,1737793841855,-500.0,0.00019439,2]
[350322164,1737793841864,-300.0,0.00019439,2]
[350322165,1737793841873,-500.0,0.00019439,2]
[350322166,1737793841883,-500.0,0.00019439,2]
[350322167,1737793841893,-500.0,0.00019439,2]
[350322168,1737793841902,-500.0,0.00019439,2]
[350322169,1737793841912,-596.32136742,0.00019439,2]
[350322170,1737793841922,-500.0,0.00019439,2]
[350322171,1737793841932,-500.0,0.00019439,2]
[350322172,1737793841941,-500.0,0.00019439,2]
[350322173,1737793841951,-500.0,0.00019439,2]
[350322174,1737793841960,-500.0,0.00019439,2]
[350322175,1737793841970,-500.0,0.00019439,2]
[350322176,1737793841980,-500.0,0.00019439,2]
[350322177,1737793841989,-500.0,0.00019439,2]
[350322178,1737793841999,-500.0,0.00019439,2]
[350322179,1737793842010,-500.0,0.00019439,2]
[350322180,1737793842021,-500.0,0.00019439,2]
[350322181,1737793842030,-437.19317113,0.00019439,2]
[350322182,1737793842040,-500.0,0.00019439,2]
[350322183,1737793842049,-500.0,0.00019439,2]
[350322184,1737793842058,-90291.25506467,0.0001944,2]
[350322185,1737793842068,-151.0,0.0001944,2]
[350322186,1737793842077,-279.935665,0.0001944,2]
[350322187,1737793842087,-279.935665,0.0001944,2]
[350322188,1737793842096,-151.0,0.0001944,2]
[350322189,1737793842106,-152.778165,0.0001944,2]
[350322190,1737793842115,-151.0,0.0001944,2]
[350322191,1737793842125,-151.0,0.0001944,2]
[350322192,1737793842134,-576.94,0.00019452,2]
[350322193,1737793842143,-701.53,0.00019452,2]
[350322194,1737793842153,-380.99120989,0.00019452,2]
[350322195,1737793842162,-1251.98,0.00019452,2]
[350322196,1737793842172,-648.92,0.00019452,2]
[350322197,1737793842181,-2299.97,0.00019452,2]
[350322198,1737793842191,-636.97,0.00019452,2]
[350322199,1737793842201,-533.21,0.00019452,2]
[350322200,1737793842211,-2669.48,0.00019452,2]
[350322201,1737793842220,-151.14570161,0.00019463,2]
[350322202,1737793842229,-200.0,0.00019492,2]
[350322203,1737793842239,-779.17,0.00019496,2]
[350322204,1737793842248,-151.0,0.00019497,2]
[350322205,1737793842259,-54956.64636597,0.00019498,2]
[350322206,1737793842268,-13932.36947401,0.00019498,2]
[350322207,1737793842277,-15000.0,0.000195,5]
[350322208,1737793842287,-745.0,0.000195,2]
[350322209,1737793842297,-232.0,0.000195,2]
[350322210,1737793842307,-1600.0,0.000195,7]
[350322211,1737793842317,-500.0,0.00019513,2]
[350322212,1737793842327,-500.0,0.00019513,2]
[350322213,1737793842337,-500.0,0.00019513,2]
[350322214,1737793842350,-500.0,0.00019513,2]
[350322215,1737793842360,-500.0,0.00019513,2]
[350322216,1737793842370,-500.0,0.00019513,2]
[350322217,1737793842379,-500.0,0.00019513,2]
[350322218,1737793842389,-500.0,0.00019513,2]
[350322219,1737793842399,-169.91845738,0.00019513,2]
[350322220,1737793842410,-500.0,0.00019513,2]
[350322221,1737793842420,-500.0,0.00019513,2]
[350322222,1737793842428,-500.0,0.00019513,2]
[350322223,1737793842438,-500.0,0.00019513,2]
[350322224,1737793842447,-500.0,0.00019513,2]
[350322225,1737793842459,-500.0,0.00019513,2]
[350322226,1737793842469,-500.0,0.00019513,2]
[350322227,1737793842479,-500.0,0.00019513,2]
[350322228,1737793842488,-298.89040135,0.00019513,2]
[350322229,1737793842498,-500.0,0.00019513,2]
[350322230,1737793842507,-500.0,0.00019513,2]
[350322231,1737793842517,-500.0,0.00019513,2]
[350322232,1737793842527,-500.0,0.00019513,2]
[350322233,1737793842537,-500.0,0.00019513,2]
[350322234,1737793842546,-500.0,0.00019513,2]
[350322236,1737793842555,-151.0,0.00019533,2]
[350322238,1737793842565,-500.0,0.00019534,2]
[350322240,1737793842575,-500.0,0.00019534,2]
[350322241,1737793842584,-500.0,0.00019534,2]
[350322242,1737793842593,-500.0,0.00019534,2]
[350322243,1737793842602,-1168.12,0.00019534,2]
[350322244,1737793842611,-336.132456,0.00019534,2]
[350322245,1737793842622,-500.0,0.00019534,2]
[350322246,1737793842631,-500.0,0.00019534,2]
[350322247,1737793842641,-500.0,0.00019534,2]
[350322248,1737793842650,-500.0,0.00019534,2]
[350322249,1737793842693,-498.192715,0.00019534,2]
[350322250,1737793842703,-739.17,0.00019534,2]
[350322251,1737793842713,-1292.75,0.00019534,2]
[350322252,1737793842723,-500.0,0.00019534,2]
[350322253,1737793842732,-948.33,0.00019534,2]
[350322254,1737793842741,-1171.25,0.00019534,2]
[350322255,1737793842750,-500.0,0.00019534,2]
[350322256,1737793842761,-1234.34,0.00019534,2]
[350322257,1737793842770,-500.0,0.00019534,2]
[350322259,1737793842779,-500.0,0.00019534,2]
[350322261,1737793842789,-500.0,0.00019534,2]
[350322263,1737793842798,-500.0,0.00019534,2]
[350322265,1737793842808,-156.873209,0.00019534,2]
[350322267,1737793842817,-500.0,0.00019534,2]
[350322268,1737793842827,-778.87,0.00019534,2]
[350322269,1737793842836,-500.0,0.00019534,2]
[350322270,1737793842846,-166.15062,0.00019534,2]
[350322271,1737793842855,-722.27,0.00019534,2]
[350322272,1737793842865,-1398.0,0.00019534,2]
[350322273,1737793842875,-1004.94,0.00019534,2]
[350322274,1737793842884,-307.759024,0.00019534,2]
[350322275,1737793842894,-2555.36,0.00019534,2]
[350322276,1737793842903,-1005.12,0.00019534,2]
[350322277,1737793842912,-179.799117,0.00019535,2]
[350322278,1737793842921,-279.935665,0.00019535,2]
[350322279,1737793842931,-279.935665,0.00019535,2]
[350322280,1737793842940,-151.0,0.00019535,2]
[350322281,1737793842949,-151.0,0.00019535,2]
[350322282,1737793842959,-872.67,0.00019536,2]
[350322283,1737793842968,-500.0,0.00019536,2]
[350322284,1737793842977,-500.0,0.00019536,2]
[350322285,1737793842986,-769.26,0.00019536,2]
[350322286,1737793842995,-680.05,0.00019536,2]
[350322287,1737793843005,-500.0,0.00019536,2]
[350322288,1737793843015,-1210.79,0.00019536,2]
[350322289,1737793843024,-500.0,0.00019536,2]
[350322290,1737793843033,-151.0,0.00019536,2]
[350322291,1737793843043,-500.0,0.00019536,2]
[350322292,1737793843052,-910.41,0.00019536,2]
[350322293,1737793843061,-596.65,0.00019536,2]
[350322294,1737793843070,-500.0,0.00019536,2]
[350322295,1737793843079,-150.0,0.00019547,2]
[350322296,1737793843088,-150.0,0.00019555,2]
[350322297,1737793843097,-13932.36947401,0.00019565,2]
[350322298,1737793843108,-500.0,0.0001957,2]
[350322299,1737793843118,-841.36,0.0001957,2]
[350322300,1737793843127,-947.22,0.0001957,2]
[350322301,1737793843136,-849.7,0.0001957,2]
[350322302,1737793843145,-500.0,0.0001957,2]
[350322303,1737793843155,-1522.2,0.0001957,2]
[350322304,1737793843164,-500.0,0.0001957,2]
[350322305,1737793843174,-500.0,0.0001957,2]
[350322306,1737793843183,-1151.59,0.0001957,2]
[350322307,1737793843192,-500.0,0.0001957,2]
[350322308,1737793843201,-1773.75,0.0001957,2]
[350322309,1737793843210,-953.36,0.0001957,2]
[350322310,1737793843219,-500.0,0.00019571,2]
[350322311,1737793843228,-500.0,0.00019571,2]
[350322312,1737793843238,-500.0,0.00019571,2]
[350322313,1737793843247,-500.0,0.00019571,2]
[350322314,1737793843256,-500.0,0.00019571,2]
[350322315,1737793843267,-500.0,0.00019571,2]
[350322316,1737793843276,-500.0,0.00019571,2]
[350322317,1737793843285,-500.0,0.00019571,2]
[350322318,1737793843295,-500.0,0.00019571,2]
[350322319,1737793843304,-606.75,0.00019571,2]
[350322320,1737793843313,-500.0,0.00019571,2]
[350322321,1737793843322,-500.0,0.00019571,2]
[350322322,1737793843331,-186.07071881,0.00019571,2]
[350322323,1737793843341,-500.0,0.00019571,2]
[350322324,1737793843353,-500.0,0.00019571,2]
[350322325,1737793843362,-500.0,0.00019571,2]
[350322326,1737793843372,-500.0,0.00019571,2]
[350322327,1737793843381,-500.0,0.00019571,2]
[350322328,1737793843390,-500.0,0.00019571,2]
[350322329,1737793843399,-500.0,0.00019571,2]
[350322330,1737793843409,-500.0,0.00019571,2]
[350322331,1737793843418,-500.0,0.00019571,2]
[350322332,1737793843427,-500.0,0.00019571,2]
[350322333,1737793843436,-500.0,0.00019571,2]
[350322334,1737793843446,-500.0,0.00019571,2]
[350322335,1737793843455,-500.0,0.00019571,2]
[350322336,1737793843464,-500.0,0.00019571,2]
[350322337,1737793843473,-500.0,0.00019571,2]
[350322338,1737793843482,-500.0,0.00019571,2]
[350322339,1737793843491,-500.0,0.00019571,2]
[350322340,1737793843500,-500.0,0.00019571,2]
[350322341,1737793843511,-500.0,0.00019571,2]
[350322342,1737793843520,-500.0,0.00019571,2]
[350322343,1737793843530,-500.0,0.00019571,2]
[350322344,1737793843540,-151.0,0.00019571,2]
[350322345,1737793843549,-500.0,0.00019571,2]
[350322346,1737793843558,-500.0,0.00019571,2]
[350322347,1737793843568,-500.0,0.00019571,2]
[350322348,1737793843577,-500.0,0.00019571,2]
[350322349,1737793843586,-500.0,0.00019571,2]
[350322350,1737793843595,-500.0,0.00019571,2]
[350322351,1737793843605,-500.0,0.00019571,2]
[350322352,1737793843615,-500.0,0.00019571,2]
[350322353,1737793843624,-500.0,0.00019571,2]
[350322354,1737793843634,-151.0,0.00019571,2]
[350322355,1737793843644,-500.0,0.00019571,2]
[350322356,1737793843653,-500.0,0.00019571,2]
[350322357,1737793843663,-500.0,0.00019571,2]
[350322358,1737793843673,-500.0,0.00019571,2]
[350322359,1737793843683,-604.54,0.00019571,2]
[350322360,1737793843692,-245.0,0.00019571,2]
[350322361,1737793843701,-500.0,0.00019571,2]
[350322362,1737793843711,-500.0,0.00019571,2]
[350322363,1737793843721,-500.0,0.00019571,2]
[350322364,1737793843730,-500.0,0.00019571,2]
[350322365,1737793843740,-500.0,0.00019571,2]
[350322366,1737793843750,-500.0,0.00019571,2]
[350322367,1737793843761,-500.0,0.00019571,2]
[350322368,1737793843770,-765.05,0.00019571,2]
[350322369,1737793843780,-500.0,0.00019571,2]
[350322370,1737793843789,-500.0,0.00019571,2]
[350322371,1737793843798,-159.281062,0.00019571,2]
[350322373,1737793843808,-500.0,0.00019571,2]
[350322374,1737793843818,-500.0,0.00019571,2]
[350322375,1737793843828,-500.0,0.00019571,2]
[350322376,1737793843837,-500.0,0.00019571,2]
[350322377,1737793843846,-500.0,0.00019571,2]
[350322378,1737793843856,-500.0,0.00019571,2]
[350322379,1737793843866,-500.0,0.00019571,2]
[350322380,1737793843875,-553.14121323,0.00019571,2]
[350322381,1737793843885,-500.0,0.00019571,2]
[350322382,1737793843894,-329.99688381,0.00019571,2]
[350322383,1737793843904,-500.0,0.00019571,2]
[350322384,1737793843914,-500.0,0.00019571,2]
[350322385,1737793843924,-500.0,0.00019571,2]
[350322386,1737793843934,-500.0,0.00019571,2]
[350322387,1737793843944,-500.0,0.00019571,2]
[350322388,1737793843954,-500.0,0.00019571,2]
[350322389,1737793843964,-500.0,0.00019571,2]
[350322390,1737793843973,-500.0,0.00019571,2]
[350322391,1737793843983,-500.0,0.00019571,2]
[350322392,1737793843993,-500.0,0.00019571,2]
[350322393,1737793844003,-500.0,0.00019571,2]
[350322394,1737793844013,-999.0,0.00019571,2]
[350322395,1737793844022,-500.0,0.00019571,2]
[350322396,1737793844032,-500.0,0.00019571,2]
[350322397,1737793844042,-1971.43,0.00019571,2]
[350322398,1737793844052,-500.0,0.00019571,2]
[350322399,1737793844061,-500.0,0.00019571,2]
[350322400,1737793844071,-500.0,0.00019571,2]
[350322401,1737793844080,-500.0,0.00019571,2]
[350322402,1737793844091,-500.0,0.00019571,2]
[350322403,1737793844100,-500.0,0.00019571,2]
[350322404,1737793844109,-500.0,0.00019571,2]
[350322405,1737793844119,-500.0,0.00019571,2]
[350322406,1737793844128,-1188.68,0.00019571,2]
[350322407,1737793844138,-500.0,0.00019571,2]
[350322408,1737793844147,-500.0,0.00019571,2]
[350322409,1737793844157,-500.0,0.00019571,2]
[350322410,1737793844167,-500.0,0.00019571,2]
[350322411,1737793844176,-536.11,0.00019571,2]
[350322412,1737793844185,-500.0,0.00019571,2]
[350322413,1737793844195,-1128.49,0.00019571,2]
[350322414,1737793844204,-500.0,0.00019571,2]
[350322415,1737793844213,-500.0,0.00019571,2]
[350322416,1737793844223,-500.0,0.00019571,2]
[350322417,1737793844232,-1000.0,0.00019571,2]
[350322418,1737793844242,-500.0,0.00019571,2]
[350322419,1737793844251,-857.04,0.00019571,2]
[350322420,1737793844261,-500.0,0.00019571,2]
[350322421,1737793844271,-500.0,0.00019571,2]
[350322422,1737793844281,-500.0,0.00019571,2]
[350322423,1737793844290,-500.0,0.00019571,2]
[350322424,1737793844299,-1553.92,0.00019571,2]
[350322425,1737793844309,-500.0,0.00019571,2]
[350322426,1737793844319,-500.0,0.00019571,2]
[350322427,1737793844328,-151.0,0.00019572,2]
[350322428,1737793844337,-640.93177437,0.00019576,2]
[350322429,1737793844351,-500.0,0.00019576,2]
[350322430,1737793844361,-500.0,0.00019576,2]
[350322431,1737793844370,-500.0,0.00019576,2]
[350322432,1737793844380,-500.0,0.00019576,2]
[350322433,1737793844391,-500.0,0.00019576,2]
[350322434,1737793844400,-500.0,0.00019576,2]
[350322435,1737793844410,-500.0,0.00019576,2]
[350322436,1737793844419,-500.0,0.00019576,2]
[350322437,1737793844430,-500.0,0.00019576,2]
[350322438,1737793844440,-500.0,0.00019576,2]
[350322439,1737793844449,-500.0,0.00019576,2]
[350322440,1737793844458,-500.0,0.00019576,2]
[350322441,1737793844467,-500.0,0.00019576,2]
[350322442,1737793844477,-500.0,0.00019576,2]
[350322443,1737793844487,-500.0,0.00019576,2]
[350322444,1737793844496,-475.61470709,0.00019576,2]
[350322445,1737793844508,-516.93130248,0.00019576,2]
[350322446,1737793844520,-500.0,0.00019576,2]
[350322447,1737793844530,-500.0,0.00019576,2]
[350322448,1737793844540,-500.0,0.00019576,2]
[350322449,1737793844549,-500.0,0.00019576,2]
[350322450,1737793844560,-500.0,0.00019576,2]
[350322451,1737793844570,-640.74,0.00019576,2]
[350322452,1737793844581,-500.0,0.00019576,2]
[350322453,1737793844590,-500.0,0.00019576,2]
[350322454,1737793844599,-613.64662846,0.00019576,2]
[350322455,1737793844608,-321.85112274,0.00019576,2]
[350322456,1737793844618,-500.0,0.00019576,2]
[350322457,1737793844627,-500.0,0.00019576,2]
[350322458,1737793844637,-500.0,0.00019576,2]
[350322459,1737793844646,-500.0,0.00019576,2]
[350322460,1737793844655,-500.0,0.00019576,2]
[350322461,1737793844665,-500.0,0.00019576,2]
[350322462,1737793844675,-150.0,0.00019584,2]
[350322463,1737793844685,-576.95765814,0.00019589,2]
[350322464,1737793844695,-701.6180022,0.00019589,2]
[350322465,1737793844705,-1252.20096015,0.00019589,2]
[350322466,1737793844716,-648.94942296,0.00019589,2]
[350322467,1737793844725,-2300.102067,0.00019589,2]
[350322468,1737793844735,-637.18155895,0.00019589,2]
[350322469,1737793844745,-533.26277576,0.00019589,2]
[350322470,1737793844755,-2669.59684781,0.00019589,2]
[350322471,1737793844765,-150.0,0.00019592,2]
[350322472,1737793844775,-2400.0,0.000196,7]
[350322473,1737793844785,-150.0,0.00019614,2]
[350322474,1737793844794,-150.0,0.00019621,2]
[350322475,1737793844803,-150.0,0.00019627,2]
[350322476,1737793844813,-150.0,0.0001963,2]
[350322477,1737793844822,-427.58353796,0.00019632,2]
[350322478,1737793844832,-279.935665,0.00019632,2]
[350322479,1737793844841,-279.935665,0.00019632,2]
[350322480,1737793844851,-151.0,0.00019632,2]
[350322481,1737793844860,-151.0,0.00019632,2]
[350322482,1737793844870,-13932.36947401,0.00019632,2]
[350322483,1737793844881,-151.0,0.00019632,2]
[350322484,1737793844891,-1000.0,0.00019636,2]
[350322485,1737793844901,-150.0,0.00019639,2]
[350322486,1737793844913,-150.0,0.00019639,2]
[350322487,1737793844925,-150.0,0.00019642,2]
[350322488,1737793844935,-1916.0,0.00019643,2]
[350322489,1737793844945,-1552.81,0.00019648,2]
[350322490,1737793844955,-500.0,0.0001965,2]
[350322491,1737793844964,-500.0,0.0001965,2]
[350322492,1737793844974,-500.0,0.0001965,2]
[350322493,1737793844983,-500.0,0.0001965,2]
[350322494,1737793844993,-500.0,0.0001965,2]
[350322495,1737793845003,-339.38,0.0001965,2]
[350322496,1737793845015,-500.0,0.0001965,2]
[350322497,1737793845026,-500.0,0.0001965,2]
[350322498,1737793845036,-500.0,0.0001965,2]
[350322499,1737793845046,-500.0,0.0001965,2]
[350322500,1737793845055,-500.0,0.0001965,2]
[350322501,1737793845064,-500.0,0.0001965,2]
[350322502,1737793845074,-500.0,0.0001965,2]
[350322503,1737793845084,-500.0,0.0001965,2]
[350322504,1737793845094,-500.0,0.0001965,2]
[350322505,1737793845103,-500.0,0.0001965,2]
[350322506,1737793845113,-150.0,0.00019651,2]
[350322507,1737793845122,-779.17,0.00019651,2]
[350322508,1737793845132,-150.0,0.00019653,2]
[350322509,1737793845142,-150.0,0.00019654,2]
[350322510,1737793845151,-150.0,0.00019657,2]
[350322511,1737793845161,-150.0,0.00019664,2]
[350322512,1737793845171,-150.0,0.00019665,2]
[350322513,1737793845180,-150.0,0.00019669,2]
[350322514,1737793845189,-151.0,0.0001967,2]
[350322515,1737793845199,-150.0,0.0001967,2]
[350322516,1737793845208,-151.0,0.0001967,2]
[350322517,1737793845217,-151.0,0.00019671,2]
[350322518,1737793845226,-500.0,0.00019671,2]
[350322519,1737793845236,-500.0,0.00019671,2]
[350322520,1737793845245,-500.0,0.00019671,2]
[350322521,1737793845255,-500.0,0.00019671,2]
[350322522,1737793845265,-1168.12,0.00019671,2]
[350322523,1737793845274,-336.132456,0.00019671,2]
[350322524,1737793845284,-500.0,0.00019671,2]
[350322525,1737793845293,-500.0,0.00019671,2]
[350322526,1737793845303,-500.0,0.00019671,2]
[350322527,1737793845312,-500.0,0.00019671,2]
[350322528,1737793845323,-498.192715,0.00019671,2]
[350322529,1737793845334,-739.17,0.00019671,2]
[350322530,1737793845344,-1292.75,0.00019671,2]
[350322531,1737793845358,-500.0,0.00019671,2]
[350322532,1737793845367,-948.33,0.00019671,2]
[350322533,1737793845377,-1171.25,0.00019671,2]
[350322534,1737793845386,-500.0,0.00019671,2]
[350322535,1737793845397,-1234.34,0.00019671,2]
[350322536,1737793845407,-500.0,0.00019671,2]
[350322537,1737793845417,-500.0,0.00019671,2]
[350322538,1737793845427,-500.0,0.00019671,2]
[350322539,1737793845438,-500.0,0.00019671,2]
[350322540,1737793845448,-500.0,0.00019671,2]
[350322541,1737793845459,-778.87,0.00019671,2]
[350322543,1737793845468,-500.0,0.00019671,2]
[350322544,1737793845478,-166.15062,0.00019671,2]
[350322545,1737793845488,-722.27,0.00019671,2]
[350322546,1737793845497,-1398.0,0.00019671,2]
[350322547,1737793845507,-1004.94,0.00019671,2]
[350322548,1737793845518,-307.759024,0.00019671,2]
[350322549,1737793845528,-2555.36,0.00019671,2]
[350322550,1737793845538,-1005.12,0.00019671,2]
[350322551,1737793845547,-872.67,0.00019673,2]
[350322552,1737793845557,-500.0,0.00019673,2]
[350322553,1737793845566,-500.0,0.00019673,2]
[350322554,1737793845575,-769.26,0.00019673,2]
[350322555,1737793845586,-680.05,0.00019673,2]
[350322556,1737793845596,-500.0,0.00019673,2]
[350322557,1737793845605,-1210.79,0.00019673,2]
[350322558,1737793845615,-500.0,0.00019673,2]
[350322559,1737793845624,-500.0,0.00019673,2]
[350322560,1737793845634,-910.41,0.00019673,2]
[350322561,1737793845643,-596.65,0.00019673,2]
[350322562,1737793845653,-500.0,0.00019673,2]
[350322563,1737793845663,-279.935665,0.00019682,2]
[350322564,1737793845672,-279.935665,0.00019682,2]
[350322565,1737793845682,-151.0,0.00019682,2]
[350322566,1737793845692,-151.0,0.00019682,2]
[350322567,1737793845702,-13932.36947401,0.00019699,2]
[350322568,1737793845712,-151.0,0.00019699,2]
[350322569,1737793845722,-3200.0,0.000197,7]
[350322570,1737793845732,-150.0,0.00019705,2]
[350322571,1737793845742,-150.0,0.00019707,2]
[350322572,1737793845752,-500.0,0.00019707,2]
[350322573,1737793845764,-841.36,0.00019707,2]
[350322574,1737793845775,-947.22,0.00019707,2]
[350322575,1737793845895,-849.7,0.00019707,2]
[350322576,1737793845919,-500.0,0.00019707,2]
[350322577,1737793845929,-1522.2,0.00019707,2]
[350322578,1737793845938,-500.0,0.00019707,2]
[350322579,1737793845947,-500.0,0.00019707,2]
[350322580,1737793845958,-1151.59,0.00019707,2]
[350322581,1737793845968,-500.0,0.00019707,2]
[350322582,1737793845977,-1773.75,0.00019707,2]
[350322583,1737793845986,-953.36,0.00019707,2]
[350322584,1737793845996,-500.0,0.00019708,2]
[350322585,1737793846006,-500.0,0.00019708,2]
[350322586,1737793846018,-500.0,0.00019708,2]
[350322587,1737793846027,-268.4199456,0.00019708,2]
[350322588,1737793846036,-243.53975438,0.00019708,2]
[350322589,1737793846045,-500.0,0.00019708,2]
[350322590,1737793846054,-500.0,0.00019708,2]
[350322591,1737793846063,-500.0,0.00019708,2]
[350322592,1737793846072,-500.0,0.00019708,2]
[350322593,1737793846082,-500.0,0.00019708,2]
[350322594,1737793846091,-500.0,0.00019708,2]
[350322595,1737793846101,-500.0,0.00019708,2]
[350322596,1737793846110,-500.0,0.00019708,2]
[350322597,1737793846118,-500.0,0.00019708,2]
[350322598,1737793846127,-500.0,0.00019708,2]
[350322599,1737793846136,-500.0,0.00019708,2]
[350322600,1737793846146,-500.0,0.00019708,2]
[350322601,1737793846155,-500.0,0.00019708,2]
[350322602,1737793846165,-500.0,0.00019708,2]
[350322603,1737793846174,-500.0,0.00019708,2]
[350322604,1737793846183,-500.0,0.00019708,2]
[350322605,1737793846192,-500.0,0.00019708,2]
[350322606,1737793846201,-500.0,0.00019708,2]
[350322607,1737793846211,-500.0,0.00019708,2]
[350322608,1737793846220,-500.0,0.00019708,2]
[350322609,1737793846229,-500.0,0.00019708,2]
[350322610,1737793846238,-500.0,0.00019708,2]
[350322611,1737793846247,-500.0,0.00019708,2]
[350322612,1737793846257,-500.0,0.00019708,2]
[350322613,1737793846267,-500.0,0.00019708,2]
[350322614,1737793846276,-604.54,0.00019708,2]
[350322615,1737793846286,-500.0,0.00019708,2]
[350322616,1737793846295,-500.0,0.00019708,2]
[350322617,1737793846304,-500.0,0.00019708,2]
[350322618,1737793846313,-500.0,0.00019708,2]
[350322619,1737793846322,-500.0,0.00019708,2]
[350322620,1737793846332,-500.0,0.00019708,2]
[350322621,1737793846341,-500.0,0.00019708,2]
[350322622,1737793846353,-765.05,0.00019708,2]
[350322623,1737793846362,-500.0,0.00019708,2]
[350322624,1737793846371,-500.0,0.00019708,2]
[350322625,1737793846380,-500.0,0.00019708,2]
[350322626,1737793846389,-500.0,0.00019708,2]
[350322627,1737793846398,-500.0,0.00019708,2]
[350322628,1737793846407,-500.0,0.00019708,2]
[350322629,1737793846416,-500.0,0.00019708,2]
[350322630,1737793846425,-500.0,0.00019708,2]
[350322631,1737793846434,-500.0,0.00019708,2]
[350322632,1737793846444,-500.0,0.00019708,2]
[350322633,1737793846453,-500.0,0.00019708,2]
[350322634,1737793846463,-500.0,0.00019708,2]
[350322635,1737793846472,-500.0,0.00019708,2]
[350322636,1737793846482,-500.0,0.00019708,2]
[350322637,1737793846491,-500.0,0.00019708,2]
[350322638,1737793846500,-500.0,0.00019708,2]
[350322639,1737793846510,-500.0,0.00019708,2]
[350322640,1737793846521,-500.0,0.00019708,2]
[350322641,1737793846530,-999.0,0.00019708,2]
[350322642,1737793846539,-500.0,0.00019708,2]
[350322643,1737793846548,-1971.43,0.00019708,2]
[350322644,1737793846557,-500.0,0.00019708,2]
[350322645,1737793846567,-500.0,0.00019708,2]
[350322646,1737793846576,-500.0,0.00019708,2]